Cogmind - Beta 14 @@@ ROGUE MODE // 2024.08.28 @ 18:50:17 Player: cabin Result: Destroyed by G-34 Mercenary with Small Laser Performance ------------- Evolutions (1) 500 Regions Visited (3) 600 Robots Destroyed (8) 40 Value Destroyed (209) 209 Prototype IDs (0) 0 Alien Tech Used (0) 0 Bonus (25) 25 TOTAL SCORE: 1374 Bonus ------- Follower Combat Kills 25 Cogmind --------- Core Integrity 0/400 Matter 300/300 Energy 250/250 System Corruption 0% Temperature Cool (6) Movement Treading (160) Location -9/Mines Parts ------- > --- POWER (1) -------- Ion Engine > --- PROPULSION (2) --- Light Treads > --- UTILITY (4) ------ Small Storage Unit Weight Redist. System > --- WEAPON (2) ------- (None) > --- INVENTORY (8) ---- Flight Unit Heat Sink Peak State ------------ > --- POWER ------------ Improved Ion Engine > --- PROPULSION ------- Flight Unit VTOL Module > --- UTILITY ---------- Small Storage Unit Weight Redist. System > --- WEAPON ----------- Light Assault Rifle Plasma Cutter > --- INVENTORY -------- Ion Engine Improved Ion Engine Light Treads Light Treads Hover Unit Hover Unit Flight Unit Weight Redist. System [Rating: 12] Favorites ----------- Power Improved Ion Engine Engine Improved Ion Engine Propulsion Light Treads Treads Light Treads Hover Unit Hover Unit Flight Unit Flight Unit Utility Small Storage Unit Device Weight Redist. System Storage Small Storage Unit Weapon Light Assault Rifle Energy Gun EM Pulse Gun Ballistic Gun Light Assault Rifle Special Weapon Plasma Cutter Build | -11 -10 -9 -9 ------- Run | Yrd Mat Mat Min Slots Evolved 2 | . . 2 . Power . | . . . . Propulsion . | . . . . Utility 2 | . . 2 . Weapon . | . . . . Parts Attached 26 | 6 3 4 13 Power 5 | 1 1 . 3 Engine 5 | 1 1 . 3 Core . | . . . . Reactor . | . . . . Propulsion 13 | 2 . 3 8 Treads 4 | 2 . . 2 Leg . | . . . . Wheel . | . . . . Hover 2 | . . . 2 Flight 7 | . . 3 4 Utility 4 | 1 1 . 2 Device 3 | . 1 . 2 Storage 1 | 1 . . . Processor . | . . . . Hackware . | . . . . Protection . | . . . . Artifact . | . . . . Weapon 4 | 2 1 1 . Energy Gun 1 | 1 . . . Energy Cannon . | . . . . Ballistic Gun 2 | 1 1 . . Ballistic Cannon . | . . . . Launcher . | . . . . Special Weapon 1 | . . 1 . Impact Weapon . | . . . . Slashing Weapon . | . . . . Piercing Weapon . | . . . . Special Melee Weapon . | . . . . Unidentified Prototypes . | . . . . Parts Lost 11 | . 1 1 9 Power 2 | . . . 2 Propulsion 5 | . . . 5 Utility 1 | . . . 1 Weapon 3 | . 1 1 1 Highest Loss Streak 5 | . 1 1 5 To Critical Strikes . | . . . . Average Slot Usage (%) 78 | . 94 71 57 Engine 11 | . 14 11 9 Treads 16 | . 28 . 4 Hover 4 | . . . 11 Flight 2 | . . 22 1 Device 13 | . 8 11 19 Storage 12 | . 14 11 11 Energy Gun 6 | . 11 . . Ballistic Gun 10 | . 16 16 . Peak Build Rating 12 | 6 10 12 11 Average Rating 7 | 4 8 10 8 On Entrance 6 | . 6 10 10 Naked Turns . | . . . . Heaviest Build 15 | 13 15 14 14 Greatest Support 46 | 40 46 14 40 Greatest Overweight (x) 4 | . . . 4 Average Overweight (x) . | . . . . Largest Inventory Capacity 8 | 8 8 8 8 Average Capacity 7 | 6 8 8 8 Most Carried 8 | . 8 8 8 Average Carried 3 | . 4 7 4 Final Capacity 8 | 8 8 8 8 Final Carried 8 | . 8 8 2 Class Distribution -------------------- 100% | Mutant Dominant Class ---------------- Mutant | -10/Materials Mutant | -9/Materials Mutant | -9/Mines Resources | -11 -10 -9 -9 ----------- Run | Yrd Mat Mat Min Matter Collected 452 | 214 101 . 137 Remotely . | . . . . Salvage Created 310 | . 265 . 45 Parts 16 | . 14 . 2 Haulers Intercepted . | . . . . Recyclers Shooed . | . . . . Parts Field Recycled . | . . . . Retrieved Matter . | . . . . Parts Self-Destructed . | . . . . Prevented . | . . . . Kills | -11 -10 -9 -9 ------- Run | Yrd Mat Mat Min Combat Hostiles Destroyed 7 | . 6 . 1 Guns 7 | . 6 . 1 Classes Destroyed 3 | . 3 . . Recycler 1 | . 1 . . Swarmer 2 | . 2 . . Grunt 5 | . 4 . 1 Best Kill Streak 7 | . 7 . 1 Combat Bots Only 6 | . 6 . 1 Max Kills in Single Turn 2 | . 2 . 1 Gunslinging 1 | . 1 . . Exploded . | . . . . Melee . | . . . . Uniques/NPCs Destroyed . | . . . . Combat | -11 -10 -9 -9 -------- Run | Yrd Mat Mat Min Hostile Shots Fired 138 | . 41 16 81 Missed 37 | . 12 6 19 Damage Taken 1460 | . 304 145 1011 Core 444 | . 44 18 382 Absorbed by Shields . | . . . . Core Remaining (%) 91 | 100 82 . . Volleys Fired 33 | . 21 6 6 Largest 2 | . 2 2 1 Hottest 60 | . 60 40 20 Shots Fired 55 | . 42 7 6 Gun 54 | . 42 6 6 Cannon . | . . . . Launcher . | . . . . Special 1 | . . 1 . Kinetic 42 | . 30 6 6 Thermal 1 | . . 1 . Explosive . | . . . . Electromagnetic 12 | . 12 . . Robot Hit Streak 8 | . 5 4 8 Robot Miss Streak 3 | . 3 1 2 Penetration Max . | . . . . Secondary Targets 3 | . 3 . . Max Gunslinging Chain 1 | . 1 . . Shots Hit Robots 37 | . 27 6 4 Core Hits 17 | . 12 2 3 Critical Kills . | . . . . Critical Parts Destroyed . | . . . . Critical Strikes . | . . . . Melee Attacks . | . . . . Impact . | . . . . Slashing . | . . . . Piercing . | . . . . Sneak Attacks . | . . . . Combat Hostiles . | . . . . Follow-up Attacks . | . . . . Damage Inflicted 346 | . 274 46 26 Guns 334 | . 274 34 26 Cannons . | . . . . Explosions . | . . . . Melee . | . . . . Ramming . | . . . . Kinetic 234 | . 174 34 26 Thermal 12 | . . 12 . Explosive . | . . . . Electromagnetic 100 | . 100 . . Impact . | . . . . Slashing . | . . . . Piercing . | . . . . Highest Corruption . | . . . . Average Corruption . | . . . . Corruption Purged . | . . . . Corruption Blocked . | . . . . Overload Shots . | . . . . Overflow Damage . | . . . . Projectiles . | . . . . Explosions . | . . . . Melee . | . . . . Knockbacks . | . . . . Impact . | . . . . Kinetic . | . . . . Secondary . | . . . . Self-Inflicted Damage . | . . . . Shots . | . . . . Rammed . | . . . . Targets Rammed . | . . . . Kicked . | . . . . Crushed . | . . . . Highest Temperature 65 | . 65 27 14 Average Temperature 16 | . 17 11 12 Received Heat Transfer 591 | . 150 60 381 Siege Activations . | . . . . Robots Corrupted . | . . . . Combat Hostiles . | . . . . Parts Fried . | . . . . Impact Corruptions . | . . . . Robots Melted . | . . . . Combat Hostiles . | . . . . Parts Melted . | . . . . Heat Transferred 37 | . . 37 . Parts Sabotaged . | . . . . Parts Stolen . | . . . . Parts Stripped . | . . . . Power Chain Reactions . | . . . . Alert | -11 -10 -9 -9 ------- Run | Yrd Mat Mat Min Peak Influence 190 | . 190 109 79 Initial 79 | . . 79 38 Average 52 | . 66 92 47 Maximum Alert Level . | . . . . Low Security (%) 100 | 100 100 100 100 Level 1 . | . . . . Level 2 . | . . . . Level 3 . | . . . . Level 4 . | . . . . Level 5 . | . . . . High Security . | . . . . Max Security . | . . . . Squads Dispatched 3 | . 2 . 1 Investigation 1 | . 1 . . Extermination . | . . . . Reinforcement 1 | . 1 . . Assault 1 | . . . 1 Garrison . | . . . . Intercept . | . . . . Searches Triggered . | . . . . Construction Impeded . | . . . . Haulers Reinforced . | . . . . Active Scanning Responses . | . . . . Cargo Convoy Interrupts . | . . . . Stealth | -11 -10 -9 -9 --------- Run | Yrd Mat Mat Min Distress Signals . | . . . . Communications Jammed . | . . . . Distress Signals . | . . . . Times Spotted 20 | . 11 2 7 Peak Tracking Total 4 | . 4 4 4 Tactical Retreats 1 | . . . 1 Traps | -11 -10 -9 -9 ------- Run | Yrd Mat Mat Min Traps Triggered 1 | . 1 . . Indirectly . | . . . . Trap Hack Attempts . | . . . . Triggered . | . . . . Disarmed . | . . . . Reprogrammed . | . . . . Reused . | . . . . Traps Extracted . | . . . . Installed . | . . . . Triggered . | . . . . Machines | -11 -10 -9 -9 ---------- Run | Yrd Mat Mat Min Machines Disabled . | . . . . Max in Single Turn . | . . . . Machines Repaired . | . . . . Machines Dismantled . | . . . . Machines Sabotaged . | . . . . Overloaded Fab Kills . | . . . . Hacking | -11 -10 -9 -9 --------- Run | Yrd Mat Mat Min Machines Accessed . | . . . . Terminals . | . . . . Fabricators . | . . . . Repair Stations . | . . . . Recycling Units . | . . . . Scanalyzers . | . . . . Garrison Access . | . . . . Total Hacks . | . . . . Successful . | . . . . Failed . | . . . . Catastrophic . | . . . . Database Lockouts . | . . . . Manual . | . . . . Terminals . | . . . . Fabricators . | . . . . Repair Stations . | . . . . Recycling Units . | . . . . Scanalyzers . | . . . . Garrison Access . | . . . . Terminal Hacks . | . . . . Fabricator Hacks . | . . . . Repair Station Hacks . | . . . . Recycling Unit Hacks . | . . . . Scanalyzer . | . . . . Garrison Access Hacks . | . . . . Unauthorized Hacks . | . . . . Terminals . | . . . . Fabricators . | . . . . Repair Stations . | . . . . Recycling Units . | . . . . Scanalyzers . | . . . . Garrison Access . | . . . . Data Cores Recovered . | . . . . Used . | . . . . Hacking Detections . | . . . . Full Trace Events . | . . . . Feedback Events . | . . . . Feedback Blocked . | . . . . Robot Schematics Acquired . | . . . . Robots Built . | . . . . Authchips . | . . . . Time . | . . . . Total Robot Build Rating . | . . . . Part Schematics Acquired . | . . . . Parts Built . | . . . . Authchips . | . . . . Time . | . . . . Total Part Build Rating . | . . . . Parts Repaired . | . . . . Time . | . . . . Parts Recycled . | . . . . Recycled Matter . | . . . . Retrieved Matter . | . . . . Retrieved Components . | . . . . Parts Scanalyzed . | . . . . Part Schematics Acquired . | . . . . Parts Damaged . | . . . . Bothacking | -11 -10 -9 -9 ------------ Run | Yrd Mat Mat Min Used RIF Installer . | . . . . Robots Hacked . | . . . . Non-combat . | . . . . Combat . | . . . . Robot Hacks Applied . | . . . . Relay Couplers Released . | . . . . Fabnet Peak Effective % . | . . . . Robots Rewired . | . . . . Allies Hacked . | . . . . Hacks Repelled . | . . . . Allies | -11 -10 -9 -9 -------- Run | Yrd Mat Mat Min Total Allies 1 | . . . 1 Largest Group 1 | . . . 1 Highest-Rated Group 31 | . . . 31 Highest-Rated Ally 31 | . . . 31 Total Orders . | . . . . Ally Attacks 5 | . . . 5 Total Damage 84 | . . . 84 Kills 1 | . . . 1 Allies Corrupted . | . . . . Allies Melted . | . . . . Intel | -11 -10 -9 -9 ------- Run | Yrd Mat Mat Min Robot Analysis Total . | . . . . Derelict Logs Recovered . | . . . . Drone Launches . | . . . . Drone Recoveries . | . . . . Exploration | -11 -10 -9 -9 ------------- Run | Yrd Mat Mat Min Turns Passed 601 | 91 269 46 195 Spaces Moved 403 | 53 126 59 165 Core 14 | 4 . . 10 Treads 199 | 49 126 . 24 Legs . | . . . . Wheels . | . . . . Hover 121 | . . . 121 Flight 69 | . . 59 10 Fastest Speed 34 | 50 160 34 35 Average Speed 109 | 151 160 34 82 Slowest Speed 250 | 160 160 37 250 Overloaded Moves . | . . . . Propulsion Burnouts . | . . . . Robots Hopped 1 | . . . 1 Cave-ins Triggered . | . . . . Exploration Rate (%) 16 | 6 28 6 26 Regions Visited 3 Branch Regions 1 Pre-discovered Areas . | . . . . Known Exits Taken . | . . . . Unknown Exits Taken 3 | 1 1 1 . Scrap Searched . | . . . . Spaces Dug . | . . . . Terrain Destroyed . | . . . . Melee . | . . . . Projectile . | . . . . AOE . | . . . . Terrain Rammed . | . . . . Walls Destroyed . | . . . . Machines Disabled . | . . . . Actions | -11 -10 -9 -9 --------- Run | Yrd Mat Mat Min Total 515 | 61 157 78 219 Wait 32 | 3 . . 29 Move 398 | 52 125 58 163 Hop 1 | . . . 1 Pick Up 14 | . 8 4 2 Fast Attach 10 | 6 1 2 1 Attach 12 | . 1 . 11 Detach 4 | . . . 4 Swap 4 | . 1 2 1 Drop 7 | . . 6 1 Fire 33 | . 21 6 6 Melee . | . . . . Ram . | . . . . Kick . | . . . . Crush . | . . . . Escape Stasis . | . . . . Rewire . | . . . . Trap . | . . . . Miscellaneous . | . . . . Route ------- -11/Scrapyard -10/Materials -9/Materials -9/Mines History --------- Turn | Location | Event 11 | -11/Scrapyard | Discovered new exit (range 16) 92 | -11/Scrapyard | Entered Materials 304 | -10/Materials | Discovered new exit (range 11) 335 | -10/Materials | Build established: Mutant 361 | -10/Materials | Entered another Materials area 361 | -9/Materials | Evolved 2 slots: Utility x2 381 | -9/Materials | Discovered new exit (range 16) 407 | -9/Materials | Entered Mines 448 | -9/Mines | Met a Derelict testing a Signal Generator 453 | -9/Mines | Found Signal Generator 456 | -9/Mines | Lost 5 parts (1p2n2w) 547 | -9/Mines | Core integrity fell below 50% 581 | -9/Mines | Core integrity fell below 20% 586 | -9/Mines | Lost 4 parts (1p2n1u) 602 | -9/Mines | Destroyed by G-34 Mercenary with Small Laser Last Messages --------------- 00508_ G-47 Trooper unfolds itself. 00508_ G-34 Mercenary unfolds itself. 00508_ L-31 Rogue unfolds itself. 00508_ M-13 Machinist unfolds itself. 00514_ JW-2YK(g) Carbon-fiber Leg severed. 00517_ JW-2YK(g) destroyed. 00519_ Imp. Ion Engine severed. 00520_ Acquired 50 matter. 00521_ Acquired Lgt. Angular Momentum Engine. 00527_ Hover Unit destroyed. 00528_ R-06 Scavenger collects Imp. Ion Engine. 00532_ R-06 Scavenger collects Imp. Heat Sink. 00543_ Hover Unit destroyed. 00552_ Lgt. Angular Momentum Engine destroyed. 00555_ Weight Redist. System destroyed. 00580_ Critical hit (Burn: +37). 00586_ K-01 Serf collects debris. 00587_ Acquired 50 matter. 00589_ K-01 Serf collects debris. 00601_ Lgt. Treads destroyed. Map ----- +----------------------------------------------------+ | | | | | | | | | | | | | | | | | | | | | | | ?????????????????????????????????????????????????? | | ????????????????????????????????####?????????????? | | ???????????????????????????????## ##?????######?? | | ???????????????????????????????# #????? ##? | | ???????????????????????????????# ##??## #? | | ???????????????????????????????# #### #? | | ???????????????????????????????# ## #?? | | ???????????????????????????????# """ #??? | | ???????????????????????????????# """ #???? | | ???????????????????####????????# """ ##???? | | ???????????????????? ##??????# ##??### | | ????????????????????? ###???## #### ##?## | | ?????????????????????? ##???## #??## ### | | ???????????????????????# ##???# #???# | | ????????????????????????#@ #???# #???# | | ????????????????????????# #???# #???# #### | | ????????????????????????#l #??##! ##??# #??# | | ????????????????????????## ##??# #### ##### | | ?????????????????????????##g#??## ##### | | ??????????????????????????#g#?## ##?? | | ??????????????????????????# ### #?? | | ???????????????????????#### ## ### | | ???????????????????????# | | ???????????????????????# %" ### | | ???????????????????????# $## ##?## ### | | ????????????????????? ?# ##??## #? | | ??????????????????? ?## ##??? #? | | ????????????????? ######???#### ##??# ##? | | ????????????????#??????????????## #???####?? | | ????????????????????????????????# #????????? | | ????????????????????????????????# #????????? | | ???????????????????????????????# ## ##????????? | | ??????????????????????????????# ### #?????????? | | ?????????????????????????????# ### #?????????? | | ???????????????????????????? ### #?????????? | | ???????????????????????????### #??# #####?????? | | ?????????????????????????????# ???# ##????? | | ?????????????????????????????# ???# ###??? | | ????????????????????????????? ????# ##?? | +----------------------------------------------------+ Best States ------------- Heat Dissipation 38 Energy Generation 18 Energy Capacity 265 Matter Stores 300 Matter Capacity 300 Sight Range 16 Terrain Scan Density 10 Additional Mass Support 6 Evasion (%) 63 Recoil Reduction 2 Item Schematics ----------------- None Robot Schematics ------------------ None Fabricated ------------ Nothing Alien Tech Used ----------------- None Achievements -------------- None Challenges ------------ None Game ------ Seed HackingThunderScreen Manual? 0 Play Time 00:13:44 Cumulative 16.2 hours Start 2024.08.28 @ 12:37:19 End 2024.08.28 @ 18:50:17 Sessions 3 Manual Loads 0 Difficulty Rogue Special Mode None Game No. 38 Rogue 37 Adventurer 1 Explorer 0 Win Type - Total 0 Types 0/0/0/0/0/0/0/0/0 Lore% 6 Gallery% 24 Achievement% 18 Wizard Run 0 Options --------- Layout 2 ASCII 0 Keyboard 1 Movement Numpad Keybinds 0 Fullscreen 1 Font 24/Smallcaps Map View 50x44 Zoom Use 0% Tactical HUD 1 Map Filters NONE Filters NONE Steam 1 RUN: 856e516c-7a85-4b36-948c-77169aca052c